[Event "WYCC 2018 G18"]
[Site "Halkidiki"]
[Date "2018.10.20"]
[Round "1"]
[White "Yurdakul, Didem Nuray"]
[Black "Du, Yuxin"]
[Result "1-0"]
[ECO "B14"]
[WhiteElo "1604"]
[BlackElo "2011"]
[Annotator "NA"]
[PlyCount "83"]
[EventDate "2018.10.20"]
[EventType "swiss"]
[EventCountry "GRE"]
[SourceTitle "playchess.com"]
[Source "ChessBase"]
[SourceQuality "1"]
[TimeControl "40/5400+30:1800+30"]

1. e4 {[%emt 0:00:00]} c6 {[%emt 0:00:00]} 2. d4 {[%emt 0:00:00]} d5 {[%emt 0:00:00]} 3. exd5 {[%emt 0:00:00]} cxd5 {[%emt 0:00:00]} 4. c4 {[%emt 0:00:25]} Nf6 {[%emt 0:00:34]} 5. Nc3 {[%emt 0:00:59]} e6 {[%emt 0:01:28]} 6. Nf3 {[%emt 0:01:08]} Nc6 {[%emt 0:03:56]} 7. Bg5 {[%emt 0:01:07]} Be7 {[%emt 0:02:02]} 8. c5 {[%emt 0:02:51]} Ne4 $11 {[%emt 0:20:11] LiveBook: 41 Games} 9. Bxe7 {[%emt 0:07:44]} Nxe7 {[%emt 0:05:53]} 10. Rc1 {[%emt 0:10:10]} O-O {[%emt 0:08:06]} 11. Bd3 {[%emt 0:01:05]} Nxc3 {[%emt 0:05:11]} 12. Rxc3 {[%emt 0:00:32]} Nc6 {[%emt 0:02:50]} 13. Qb1 {[%emt 0:08:35]} h6 {[%emt 0:06:09]} 14. O-O {[%emt 0:01:12]} Qf6 {[%emt 0:18:47]} 15. Rd1 {[%emt 0:04:00]} Rd8 {[%emt 0:03:14]} 16. Bb5 {[%emt 0:04:16]} Bd7 {[%emt 0:01:58]} 17. Bxc6 {[%emt 0:05:42]} Bxc6 {[%emt 0:01:06]} 18. Ne5 {[%emt 0:00:26]} Be8 {[%emt 0:02:11]} 19. b4 {[%emt 0:07:04]} a6 {[%emt 0:03:30]} 20. Rg3 {[%emt 0:01:28]} Qf5 {[%emt 0:08:06]} 21. Qc1 {[%emt 0:00:38]} Kf8 {[%emt 0:02:24]} 22. Rdd3 {[%emt 0:01:05]} f6 {[%emt 0:00:54]} 23. Rdf3 {[%emt 0:10:18]} Qh7 {[%emt 0:00:18]} 24. c6 {[%emt 0:00:17]} b6 {[%emt 0:00:52]} 25. a4 {[%emt 0:05:32]} Ke7 {[%emt 0:00:42]} 26. Nd3 {[%emt 0:04:01]} Rd6 {[%emt 0:01:25]} 27. b5 {[%emt 0:03:39]} axb5 {[%emt 0:00:16]} 28. axb5 {[%emt 0:00:06]} g5 {[%emt 0:01:10]} 29. Nb4 {[%emt 0:02:05]} Qe4 {[%emt 0:00:20]} 30. Ra3 {[%emt 0:07:59]} Rc8 {[%emt 0:00:09]} 31. Ra7+ {[%emt 0:02:00]} Kf8 {[%emt 0:00:05]} 32. Qd1 {[%emt 0:00:12]} Bh5 {[%emt 0:01:14]} 33. Qa1 {[%emt 0:00:32]} Rdd8 {[%emt 0:00:48]} 34. Re3 {[%emt 0:00:48]} Qf5 {[%emt 0:00:18]} 35. Nd3 {[%emt 0:02:07]} Bf7 {[%emt 0:00:37]} 36. Qa3+ {[%emt 0:00:08]} Kg8 {[%emt 0:00:29]} 37. Qe7 {[%emt 0:01:45]} Rf8 {[%emt 0:00:17]} 38. Rf3 {[%emt 0:03:14]} Qg6 {[%emt 0:00:50]} 39. Qxf6 {[%emt 0:00:13]} Qxf6 {[%emt 0:00:30]} 40. Rxf6 {[%emt 0:00:00]} Ra8 {[%emt 0:00:00]} 41. Rfxf7 {[%emt 0:00:36]} Rxf7 {[%emt 0:00:30]} 42. Rxa8+ {[%emt 0:00:05]} 1-0

[Event "WYCC 2018 G18"]
[Site "Halkidiki"]
[Date "2018.10.20"]
[Round "1"]
[White "Ramirez Toledo, Ayleen Maribel"]
[Black "Hamedi Nia, Vesal"]
[Result "0-1"]
[ECO "E08"]
[WhiteElo "1545"]
[BlackElo "1987"]
[Annotator "NA"]
[PlyCount "80"]
[EventDate "2018.10.20"]
[EventType "swiss"]
[EventCountry "GRE"]
[SourceTitle "playchess.com"]
[Source "ChessBase"]
[SourceQuality "1"]
[TimeControl "40/5400+30:1800+30"]

1. Nf3 {[%emt 0:00:00]} d5 {[%emt 0:00:00]} 2. d4 {[%emt 0:00:00]} Nf6 {[%emt 0:00:14]} 3. g3 {[%emt 0:00:08]} e6 {[%emt 0:00:41]} 4. Bg2 {[%emt 0:00:56]} Be7 {[%emt 0:00:35]} 5. O-O {[%emt 0:00:59]} O-O {[%emt 0:00:05]} 6. c4 {[%emt 0:00:12]} c6 {[%emt 0:03:09]} 7. Qc2 {[%emt 0:01:28]} Nbd7 {[%emt 0:01:55]} 8. b3 {[%emt 0:04:53]} b6 {[%emt 0:01:39]} 9. Bb2 {[%emt 0:00:44]} Bb7 {[%emt 0:00:53]} 10. Nbd2 {[%emt 0:02:48]} c5 {[%emt 0:01:50]} 11. Rac1 {[%emt 0:03:09]} Rc8 {[%emt 0:15:06]} 12. Qb1 {[%emt 0:02:45]} cxd4 {[%emt 0:07:08]} 13. Nxd4 {[%emt 0:06:39]} Bb4 {[%emt 0:04:07]} 14. Rfd1 {[%emt 0:07:09]} Qe7 {[%emt 0:06:06]} 15. cxd5 {[%emt 0:21:15]} Nxd5 {[%emt 0:07:02]} 16. Nc4 {[%emt 0:01:46]} Rfd8 {[%emt 0:16:51]} 17. a3 {[%emt 0:11:30]} Bc5 {[%emt 0:01:27]} 18. b4 {[%emt 0:02:59]} Bxd4 {[%emt 0:01:07]} 19. Bxd4 {[%emt 0:00:02]} Nf8 {[%emt 0:13:27]} 20. Qa1 {[%emt 0:16:28]} Ba6 {[%emt 0:11:34]} 21. Qa2 {[%emt 0:05:24]} Ng6 {[%emt 0:03:03]} 22. Ne3 {[%emt 0:07:13]} Nxe3 {[%emt 0:02:16]} 23. Bxe3 {[%emt 0:00:13]} Rxd1+ {[%emt 0:00:34]} 24. Rxd1 {[%emt 0:00:00]} Ne5 {[%emt 0:00:28]} 25. Bf4 {[%emt 0:03:01]} Nc4 {[%emt 0:00:19]} 26. Qb3 {[%emt 0:00:39]} e5 {[%emt 0:00:45]} 27. Bc1 {[%emt 0:00:17]} Nd6 {[%emt 0:00:31]} 28. Qa2 {[%emt 0:00:45]} Bc4 {[%emt 0:00:32]} 29. Qb2 {[%emt 0:00:20]} h6 {[%emt 0:00:26]} 30. a4 {[%emt 0:00:31]} Qe6 {[%emt 0:00:35]} 31. Be3 {[%emt 0:00:39]} Nf5 {[%emt 0:00:31]} 32. Bd2 {[%emt 0:00:30]} Bb3 {[%emt 0:00:28]} 33. Ra1 {[%emt 0:00:20]} Rc2 {[%emt 0:00:23]} 34. Qb1 {[%emt 0:00:37]} Rxd2 {[%emt 0:00:33]} 35. Qe4 {[%emt 0:00:24]} Bd5 {[%emt 0:00:13]} 36. Qg4 {[%emt 0:00:38]} Bxg2 {[%emt 0:00:08]} 37. e4 {[%emt 0:00:33]} Bxe4 {[%emt 0:00:31]} 38. Qxe4 {[%emt 0:00:09]} Nd4 {[%emt 0:00:36]} 39. Ra3 {[%emt 0:00:46]} Qc4 {[%emt 0:00:57]} 40. Qxe5 {[%emt 0:00:00]} Rd1+ {[%emt 0:00:00]} 0-1

[Event "WYCC 2018 G18"]
[Site "Halkidiki"]
[Date "2018.10.21"]
[Round "2"]
[White "Avramidou, Anastasia"]
[Black "Cvitan, Ena"]
[Result "1-0"]
[ECO "D35"]
[WhiteElo "2285"]
[BlackElo "2034"]
[Annotator "NA"]
[PlyCount "55"]
[EventDate "2018.10.20"]
[EventType "swiss"]
[EventCountry "GRE"]
[SourceTitle "playchess.com"]
[Source "ChessBase"]
[SourceQuality "1"]
[TimeControl "40/5400+30:1800+30"]

1. d4 {[%emt 0:00:00]} d5 {[%emt 0:00:00]} 2. c4 {[%emt 0:00:00]} e6 {[%emt 0:00:00]} 3. Nc3 {[%emt 0:00:00]} Nf6 {[%emt 0:00:00]} 4. cxd5 {[%emt 0:00:00]} exd5 {[%emt 0:00:00]} 5. Bg5 {[%emt 0:00:00]} Be7 {[%emt 0:00:22]} 6. e3 {[%emt 0:00:06]} c6 {[%emt 0:00:28]} 7. Bd3 {[%emt 0:00:09]} Nbd7 {[%emt 0:02:18]} 8. h3 {[%emt 0:00:15] D35: Damengambit (Abtauschvariante)} (8. Qc2 Nf8 9. Nf3 Ne6 10. Bh4 g6 11. O-O Ng7 12. b4 a6 13. Rab1 Bf5 14. a4 Bxd3 15. Qxd3 Nf5 16. Bxf6 Bxf6 17. b5 axb5 18. axb5 O-O 19. bxc6 bxc6 20. Ra1 {1-0 (83) Tomashevsky,E (2705)-Grachev,B (2626) Sochi 2018}) 8... Ne4 {[%emt 0:06:18]} 9. Bxe7 {[%emt 0:03:00]} Qxe7 {[%emt 0:00:34] LiveBook: 6 Partien} 10. Nf3 {[%emt 0:11:32]} (10. Bxe4 $5 dxe4 11. Nge2 $14) 10... Ndf6 {[%emt 0:05:03]} 11. Qc2 {[%emt 0:00:31]} Bf5 {[%emt 0:04:56]} 12. Ne5 {[%emt 0:04:59]} Nxc3 $146 {[%emt 0:16:58]} ({Vorgänger:} 12... O-O 13. O-O Rfd8 14. f3 Nxc3 15. Bxf5 Nb5 16. Rad1 g6 17. Bd3 Nd7 18. Nxd7 Qxd7 19. Bxb5 cxb5 {½-½ (68) Schmitt,H-Michels,M Griesheim 2000}) 13. Bxf5 {[%emt 0:01:11]} Nce4 {[%emt 0:00:13] [#]} 14. Nxc6 $1 {[%emt 0:15:11]} Qd6 {[%emt 0:01:53]} 15. Bxe4 {[%emt 0:03:37]} Nxe4 {[%emt 0:00:52]} 16. Ne5 {[%emt 0:00:03]} Qb4+ {[%emt 0:00:45]} 17. Ke2 {[%emt 0:00:39]} O-O {[%emt 0:04:03]} 18. Nd3 {[%emt 0:01:35]} Qb5 {[%emt 0:09:58]} 19. Rhc1 {[%emt 0:01:43]} g6 {[%emt 0:03:37]} 20. a4 {[%emt 0:09:22]} Qa6 $16 {[%emt 0:02:40]} 21. Qb3 {[%emt 0:03:25]} Rab8 {[%emt 0:09:28]} 22. Qb5 {[%emt 0:09:20]} Qd6 {[%emt 0:01:23]} 23. Ne5 {[%emt 0:09:17]} Rfe8 {[%emt 0:07:47]} 24. Kf1 {[%emt 0:02:43]} a6 {[%emt 0:04:08]} 25. Qd7 {[%emt 0:05:52]} Qf6 {[%emt 0:02:17]} 26. Ng4 {[%emt 0:01:19]} Qg7 {[%emt 0:10:51]} 27. Rc7 {[%emt 0:05:09]} Rbd8 {[%emt 0:00:26]} 28. Qxf7+ {[%emt 0:00:07]} 1-0

[Event "WYCC 2018 G18"]
[Site "Halkidiki"]
[Date "2018.10.21"]
[Round "2"]
[White "Injac, Teodora"]
[Black "Hng, Mei-En Emmanuelle"]
[Result "0-1"]
[ECO "A43"]
[WhiteElo "2258"]
[BlackElo "2020"]
[Annotator "NA"]
[PlyCount "80"]
[EventDate "2018.10.20"]
[EventType "swiss"]
[EventCountry "GRE"]
[SourceTitle "playchess.com"]
[Source "ChessBase"]
[SourceQuality "1"]
[TimeControl "40/5400+30:1800+30"]

1. d4 {[%emt 0:00:00]} Nf6 {[%emt 0:00:00]} 2. Nf3 {[%emt 0:00:00]} c5 {[%emt 0:00:00]} 3. d5 {[%emt 0:00:38]} e6 {[%emt 0:00:13]} 4. Nc3 {[%emt 0:00:15]} d6 {[%emt 0:04:02]} 5. e4 {[%emt 0:00:40]} exd5 {[%emt 0:02:26]} 6. exd5 {[%emt 0:00:30]} Be7 {[%emt 0:00:58]} 7. Bd3 {[%emt 0:05:29]} O-O {[%emt 0:05:05]} 8. h3 {[%emt 0:01:43]} Na6 {[%emt 0:02:30]} 9. O-O {[%emt 0:08:36] LiveBook: 7 Games} Nb4 {[%emt 0:03:47]} 10. Bc4 {[%emt 0:05:06] A43: Schmid Benoni} Bf5 {[%emt 0:15:02]} 11. Ne1 {[%emt 0:00:34]} Rb8 $146 {[%emt 0:05:21]} ({Predecessor:} 11... Nd7 12. a3 Na6 13. Nf3 Nb6 14. Be2 Nc7 15. a4 Bf6 16. a5 Nc8 17. Nb5 Re8 18. Nxc7 Qxc7 {1-0 (56) Gara,T (2364)-Chelushkina,I (2333) Novi Sad 2009}) 12. a3 {[%emt 0:00:57]} Na6 {[%emt 0:12:42]} 13. Nb5 {[%emt 0:16:46]} Nc7 {[%emt 0:02:40]} 14. a4 {[%emt 0:05:43]} a6 {[%emt 0:02:24]} 15. Nxc7 {[%emt 0:00:15]} Qxc7 {[%emt 0:00:01]} 16. a5 {[%emt 0:00:17]} Nd7 {[%emt 0:05:32]} 17. Be3 {[%emt 0:09:43]} Ne5 {[%emt 0:03:31]} 18. Be2 {[%emt 0:00:29]} Bd7 {[%emt 0:01:36]} 19. c3 {[%emt 0:04:48]} f5 {[%emt 0:07:40]} 20. f4 {[%emt 0:02:17]} Ng6 {[%emt 0:00:23]} 21. b4 {[%emt 0:07:30]} Rfe8 {[%emt 0:04:52]} 22. Qd2 {[%emt 0:01:15]} Bf6 {[%emt 0:02:37]} 23. bxc5 {[%emt 0:04:27]} dxc5 {[%emt 0:00:42]} 24. Bc4 {[%emt 0:05:37]} Qd6 {[%emt 0:03:12]} 25. Rb1 {[%emt 0:00:38]} Bd8 {[%emt 0:03:11]} 26. Qf2 {[%emt 0:02:09]} Rxe3 {[%emt 0:03:25]} 27. Qxe3 {[%emt 0:00:06]} Bxa5 {[%emt 0:00:05]} 28. Nf3 {[%emt 0:07:18]} b5 {[%emt 0:00:46]} 29. Ne5 {[%emt 0:05:15]} Re8 {[%emt 0:00:11]} 30. Qg3 {[%emt 0:01:19]} (30. Qf3 {is a better defense.} Nxe5 31. fxe5 Rxe5 32. Bb3) 30... Nxe5 {[%emt 0:01:22]} 31. fxe5 {[%emt 0:00:03]} Qxe5 {[%emt 0:00:07]} 32. Qxe5 {[%emt 0:01:06]} Rxe5 {[%emt 0:00:01]} 33. Rfe1 {[%emt 0:04:09]} Rxe1+ {[%emt 0:02:03]} 34. Rxe1 {[%emt 0:00:01]} bxc4 {[%emt 0:00:08]} 35. Re7 {[%emt 0:00:03]} Bb5 {[%emt 0:00:41]} 36. d6 {[%emt 0:01:11]} Kf8 {[%emt 0:00:32]} 37. Re3 $19 {[%emt 0:00:28]} f4 {[%emt 0:00:36]} 38. Rf3 {[%emt 0:00:08]} Ke8 {[%emt 0:00:27]} 39. Kf1 {[%emt 0:01:20]} Bc6 {[%emt 0:00:42]} 40. Rxf4 {[%emt 0:00:00]} Bxc3 {[%emt 0:00:00]} 0-1

[Event "WYCC 2018 G18"]
[Site "Halkidiki"]
[Date "2018.10.21"]
[Round "2"]
[White "Afonasieva, Anna"]
[Black "Bauyrzhan, Arnash"]
[Result "1/2-1/2"]
[ECO "D79"]
[WhiteElo "2245"]
[BlackElo "2011"]
[Annotator "NA"]
[PlyCount "75"]
[EventDate "2018.10.20"]
[EventType "swiss"]
[EventCountry "GRE"]
[SourceTitle "playchess.com"]
[Source "ChessBase"]
[SourceQuality "1"]
[TimeControl "40/5400+30:1800+30"]

1. d4 {[%emt 0:00:00]} Nf6 {[%emt 0:00:00]} 2. c4 {[%emt 0:00:00]} g6 {[%emt 0:00:04]} 3. Nf3 {[%emt 0:00:00]} Bg7 {[%emt 0:00:27]} 4. g3 {[%emt 0:00:00]} O-O {[%emt 0:00:26]} 5. Bg2 {[%emt 0:00:03]} c6 {[%emt 0:00:52]} 6. O-O {[%emt 0:00:45]} d5 {[%emt 0:00:50]} 7. cxd5 {[%emt 0:00:23]} cxd5 {[%emt 0:00:11]} 8. Nc3 {[%emt 0:00:06]} b6 {[%emt 0:05:49]} 9. a4 $146 {[%emt 0:09:08] D79: Fianchetto Grünfeld: Symmetrical Variation (6 0-0 c6 7 cxd5 cxd5)} ({Predecessor:} 9. Bf4) 9... Nc6 {[%emt 0:02:56]} 10. Ne5 {[%emt 0:01:56]} Bb7 {[%emt 0:01:56]} 11. Bg5 {[%emt 0:03:39]} Nxe5 {[%emt 0:20:51]} 12. dxe5 {[%emt 0:00:21]} Ne4 {[%emt 0:00:13]} 13. Bxe4 {[%emt 0:01:07]} dxe4 {[%emt 0:00:06]} 14. Qxd8 {[%emt 0:00:06]} Rfxd8 {[%emt 0:00:08]} 15. Bxe7 {[%emt 0:00:12]} Rd2 {[%emt 0:01:46]} 16. Bd6 {[%emt 0:12:48]} Rxb2 {[%emt 0:03:08]} 17. a5 {[%emt 0:03:48]} bxa5 {[%emt 0:11:00]} 18. Rxa5 {[%emt 0:00:54]} Rc8 {[%emt 0:02:24]} 19. Nb5 {[%emt 0:06:33]} e3 {[%emt 0:08:51]} 20. Nd4 $1 {[%emt 0:12:32]} exf2+ {[%emt 0:11:46]} 21. Kxf2 {[%emt 0:00:36]} Rc3 {[%emt 0:05:04]} 22. Rb5 {[%emt 0:09:57]} Bh6 {[%emt 0:03:51]} 23. Rb1 {[%emt 0:05:39]} Be3+ {[%emt 0:01:23]} 24. Kf1 {[%emt 0:00:11]} Rxb1+ {[%emt 0:07:22]} 25. Rxb1 {[%emt 0:00:07]} Rc1+ {[%emt 0:02:33]} 26. Rxc1 {[%emt 0:00:04]} Bxc1 {[%emt 0:00:05]} 27. Kf2 {[%emt 0:13:26]} Bd5 {[%emt 0:01:38]} 28. Bb4 {[%emt 0:01:21]} Bb2 {[%emt 0:01:41]} 29. e3 {[%emt 0:00:42]} Kg7 {[%emt 0:00:50]} 30. Ke2 {[%emt 0:02:11]} Bxd4 {[%emt 0:03:18]} 31. exd4 {[%emt 0:00:05]} f6 {[%emt 0:00:32]} 32. Ke3 {[%emt 0:02:18]} fxe5 {[%emt 0:00:22]} 33. dxe5 {[%emt 0:00:05]} Kf7 {[%emt 0:00:13]} 34. Kf4 {[%emt 0:01:01]} Ke6 {[%emt 0:00:09]} 35. Bc3 {[%emt 0:01:19]} h6 {[%emt 0:01:03]} 36. Ke3 $11 {[%emt 0:02:46]} a5 {[%emt 0:00:46]} 37. Bxa5 {[%emt 0:02:42]} Kxe5 {[%emt 0:00:06]} 38. Bc3+ {[%emt 0:00:07]} 1/2-1/2

[Event "WYCC 2018 G18"]
[Site "Halkidiki"]
[Date "2018.10.21"]
[Round "2"]
[White "Chitlange Sakshi"]
[Black "Nass, Sara"]
[Result "1-0"]
[ECO "D36"]
[WhiteElo "2237"]
[BlackElo "1986"]
[Annotator "NA"]
[PlyCount "47"]
[EventDate "2018.10.20"]
[EventType "swiss"]
[EventCountry "GRE"]
[SourceTitle "playchess.com"]
[Source "ChessBase"]
[SourceQuality "1"]
[TimeControl "40/5400+30:1800+30"]

1. d4 {[%emt 0:00:00]} d5 {[%emt 0:00:00]} 2. c4 {[%emt 0:00:00]} e6 {[%emt 0:00:00]} 3. Nc3 {[%emt 0:00:00]} Nf6 {[%emt 0:00:00]} 4. Bg5 {[%emt 0:00:41]} c6 {[%emt 0:01:38]} 5. cxd5 {[%emt 0:01:36]} exd5 {[%emt 0:01:04]} 6. Qc2 {[%emt 0:00:06]} Be7 {[%emt 0:01:17]} 7. e3 {[%emt 0:00:19]} Nbd7 {[%emt 0:01:11]} 8. Bd3 {[%emt 0:00:49]} O-O {[%emt 0:00:55]} 9. Nf3 {[%emt 0:00:25]} Re8 {[%emt 0:01:02]} 10. O-O {[%emt 0:00:34]} g6 {[%emt 0:02:11]} 11. Bf4 {[%emt 0:03:51]} Nf8 {[%emt 0:07:56]} 12. Rab1 {[%emt 0:00:07]} a5 {[%emt 0:07:55]} 13. a3 {[%emt 0:00:33]} Ne6 {[%emt 0:02:42]} 14. Be5 {[%emt 0:00:16]} Nd7 {[%emt 0:05:29]} 15. Bg3 {[%emt 0:04:04]} b5 {[%emt 0:15:50]} 16. e4 {[%emt 0:06:46]} dxe4 {[%emt 0:05:58]} 17. Bxe4 {[%emt 0:00:07]} Ra6 {[%emt 0:01:39]} 18. Rbd1 $16 {[%emt 0:13:05]} f5 {[%emt 0:12:47]} 19. Bxc6 {[%emt 0:10:12]} Rxc6 {[%emt 0:01:28]} 20. d5 {[%emt 0:00:00]} Rxc3 {[%emt 0:02:16]} 21. Qxc3 {[%emt 0:01:42]} Bf6 {[%emt 0:01:37]} 22. Qc6 {[%emt 0:03:59]} Nec5 {[%emt 0:15:51]} 23. Bc7 {[%emt 0:02:25]} Qe7 {[%emt 0:05:18]} 24. Bd6 {[%emt 0:00:05]} 1-0

[Event "WYCC 2018 G18"]
[Site "Halkidiki"]
[Date "2018.10.21"]
[Round "2"]
[White "Hrescak, Ivana"]
[Black "Caballero Quijano, Mitzy Mishell"]
[Result "1/2-1/2"]
[ECO "D18"]
[WhiteElo "2173"]
[BlackElo "1956"]
[Annotator "ChessBase"]
[PlyCount "89"]
[EventDate "2018.10.20"]
[EventType "swiss"]
[EventCountry "GRE"]
[SourceTitle "playchess.com"]
[Source "ChessBase"]
[SourceQuality "1"]
[TimeControl "40/5400+30:1800+30"]

1. d4 {[%emt 0:00:00]} d5 {[%emt 0:00:03]} 2. c4 {[%emt 0:00:05]} c6 {[%emt 0:00:06]} 3. Nf3 {[%emt 0:00:10]} Nf6 {[%emt 0:00:07]} 4. Nc3 {[%emt 0:00:11]} dxc4 {[%emt 0:00:11]} 5. a4 {[%emt 0:00:45]} Bf5 {[%emt 0:00:06]} 6. e3 {[%emt 0:00:14]} e6 {[%emt 0:00:06]} 7. Bxc4 {[%emt 0:00:30]} Bb4 {[%emt 0:00:09]} 8. O-O {[%emt 0:01:55]} Nbd7 {[%emt 0:00:34]} 9. Qe2 {[%emt 0:00:17]} Ne4 {[%emt 0:00:29]} 10. Nxe4 {[%emt 0:05:42]} Bxe4 {[%emt 0:00:08]} 11. Nd2 {[%emt 0:01:21]} Bg6 {[%emt 0:00:51]} 12. Rd1 {[%emt 0:09:40]} O-O {[%emt 0:01:22]} 13. Nf1 {[%emt 0:03:14]} Qc7 {[%emt 0:10:53]} 14. e4 {[%emt 0:07:20]} Nf6 {[%emt 0:01:54]} 15. Ng3 {[%emt 0:02:14]} e5 {[%emt 0:05:08]} 16. dxe5 {[%emt 0:03:19]} Qxe5 {[%emt 0:06:01]} 17. f4 {[%emt 0:04:35]} Qe7 {[%emt 0:07:35]} 18. Bd3 {[%emt 0:13:13]} Bc5+ {[%emt 0:04:41]} 19. Kh1 {[%emt 0:01:10]} h5 {[%emt 0:00:47]} 20. Rf1 {[%emt 0:11:54]} Ng4 {[%emt 0:02:40]} 21. h3 {[%emt 0:02:05]} Qh4 {[%emt 0:00:28]} 22. Qf3 {[%emt 0:02:08]} Rad8 {[%emt 0:02:24]} 23. Bc2 {[%emt 0:02:03]} f6 {[%emt 0:03:52]} 24. Rb1 {[%emt 0:03:35]} a5 {[%emt 0:00:51]} 25. Bb3+ {[%emt 0:04:12]} Kh8 {[%emt 0:00:08]} 26. Be6 {[%emt 0:04:36]} Rfe8 {[%emt 0:29:06]} 27. f5 {[%emt 0:11:00]} Ne5 {[%emt 0:02:20]} 28. Qf4 {[%emt 0:00:22]} Qxf4 {[%emt 0:00:21]} 29. Bxf4 {[%emt 0:00:02]} h4 {[%emt 0:00:37]} 30. Bxe5 {[%emt 0:03:44]} fxe5 {[%emt 0:00:08]} 31. Ne2 {[%emt 0:00:11]} Bh5 {[%emt 0:00:12]} 32. g4 {[%emt 0:00:41]} hxg3 {[%emt 0:02:36]} 33. Nxg3 {[%emt 0:00:01]} Bg6 {[%emt 0:01:30]} 34. Rbd1 {[%emt 0:01:51]} Bh7 {[%emt 0:00:38]} 35. Ne2 {[%emt 0:01:39]} Bg8 {[%emt 0:00:39]} 36. Bxg8 {[%emt 0:00:33]} Kxg8 {[%emt 0:00:22]} 37. Kg2 {[%emt 0:00:30]} Kf7 {[%emt 0:00:30]} 38. Ng3 {[%emt 0:01:14]} Rd4 {[%emt 0:00:39]} 39. Rxd4 {[%emt 0:00:04]} exd4 {[%emt 0:04:02]} 40. Rd1 {[%emt 0:00:00]} Ba7 {[%emt 0:00:00]} 41. Kf3 {[%emt 0:07:31]} c5 {[%emt 0:02:21]} 42. b3 {[%emt 0:01:28]} Bb8 {[%emt 0:02:51]} 43. Nf1 {[%emt 0:00:23]} Rh8 {[%emt 0:01:21]} 44. Kg4 {[%emt 0:00:26]} g6 {[%emt 0:09:42]} 45. Rd3 {[%emt 0:10:33]} 1/2-1/2

[Event "WYCC 2018 G18"]
[Site "Halkidiki"]
[Date "2018.10.21"]
[Round "2"]
[White "Gajcin, Marina"]
[Black "Prakapuk, Vera"]
[Result "0-1"]
[ECO "B10"]
[WhiteElo "2153"]
[BlackElo "1949"]
[Annotator "ChessBase"]
[PlyCount "94"]
[EventDate "2018.10.20"]
[EventType "swiss"]
[EventCountry "GRE"]
[SourceTitle "playchess.com"]
[Source "ChessBase"]
[SourceQuality "1"]
[TimeControl "40/5400+30:1800+30"]

1. e4 {[%emt 0:00:00]} c6 {[%emt 0:00:00]} 2. Nc3 {[%emt 0:00:00]} d5 {[%emt 0:00:00]} 3. Nf3 {[%emt 0:00:09]} g6 {[%emt 0:00:28]} 4. d4 {[%emt 0:00:40]} Nf6 {[%emt 0:01:36]} 5. Bd3 {[%emt 0:00:45]} Bg4 {[%emt 0:06:27]} 6. e5 {[%emt 0:01:36]} Nfd7 {[%emt 0:00:27]} 7. h3 {[%emt 0:01:13]} Bxf3 {[%emt 0:00:14]} 8. Qxf3 {[%emt 0:02:17]} Bg7 {[%emt 0:00:16]} 9. Ne2 {[%emt 0:06:28]} O-O {[%emt 0:07:49]} 10. c3 {[%emt 0:05:10]} c5 {[%emt 0:09:13]} 11. O-O {[%emt 0:09:22]} cxd4 {[%emt 0:01:32]} 12. cxd4 {[%emt 0:00:21]} Nc6 {[%emt 0:00:20]} 13. Bd2 {[%emt 0:17:30]} e6 {[%emt 0:12:48]} 14. Rae1 {[%emt 0:12:39]} f6 {[%emt 0:09:39]} 15. exf6 {[%emt 0:02:54]} Bxf6 {[%emt 0:07:41]} 16. Qg4 {[%emt 0:06:15]} e5 {[%emt 0:00:57]} 17. Bf5 {[%emt 0:06:39]} Nb6 {[%emt 0:09:52]} 18. Bh6 {[%emt 0:02:50]} Re8 {[%emt 0:04:17]} 19. Bb1 {[%emt 0:18:10]} Kh8 {[%emt 0:02:02]} 20. dxe5 {[%emt 0:01:01]} Nxe5 {[%emt 0:00:06]} 21. Qf4 {[%emt 0:01:25]} Nbc4 {[%emt 0:02:21]} 22. b3 {[%emt 0:01:32]} Na3 {[%emt 0:00:38]} 23. Nd4 {[%emt 0:01:43]} Nxb1 {[%emt 0:00:36]} 24. Rxb1 {[%emt 0:00:01]} Nf7 {[%emt 0:06:50]} 25. Rbe1 {[%emt 0:00:03]} Rxe1 {[%emt 0:00:06]} 26. Rxe1 {[%emt 0:00:01]} Nxh6 {[%emt 0:00:43]} 27. Ne6 {[%emt 0:00:04]} g5 {[%emt 0:03:27]} 28. Nxd8 {[%emt 0:00:05]} gxf4 {[%emt 0:00:15]} 29. Re8+ {[%emt 0:00:12]} Kg7 {[%emt 0:02:43]} 30. Ne6+ {[%emt 0:00:01]} Kf7 {[%emt 0:00:06]} 31. Rxa8 {[%emt 0:00:03]} Kxe6 {[%emt 0:00:02]} 32. Rxa7 {[%emt 0:00:04]} d4 {[%emt 0:00:58]} 33. Rxb7 {[%emt 0:03:38]} Nf5 {[%emt 0:02:44]} 34. Rb6+ {[%emt 0:00:02]} Nd6 {[%emt 0:01:06]} 35. Kf1 {[%emt 0:01:15]} d3 {[%emt 0:00:05]} 36. Rc6 {[%emt 0:00:58]} Kd5 {[%emt 0:00:43]} 37. Rc1 {[%emt 0:00:21]} Ne4 {[%emt 0:00:44]} 38. f3 {[%emt 0:00:51]} Nc3 {[%emt 0:00:17]} 39. Ke1 {[%emt 0:00:21]} Kd4 {[%emt 0:03:53]} 40. Kd2 {[%emt 0:00:00]} Be7 {[%emt 0:00:00]} 41. Ra1 {[%emt 0:19:54]} Bb4 {[%emt 0:01:24]} 42. a3 {[%emt 0:00:04]} Ne4+ {[%emt 0:01:23]} 43. Kd1 {[%emt 0:01:43]} Nf2+ {[%emt 0:03:15]} 44. Kc1 {[%emt 0:00:01]} Kc3 {[%emt 0:00:36]} 45. Ra2 {[%emt 0:00:40]} Bxa3+ {[%emt 0:00:15]} 46. Kb1 {[%emt 0:00:10]} d2 {[%emt 0:00:33]} 47. Rc2+ {[%emt 0:00:14]} Kd3 {[%emt 0:00:08]} 0-1

[Event "WYCC 2018 G18"]
[Site "Halkidiki"]
[Date "2018.10.21"]
[Round "2"]
[White "Arpita, Mukherjee"]
[Black "Yurdakul, Didem Nuray"]
[Result "1-0"]
[ECO "B50"]
[WhiteElo "2147"]
[BlackElo "1604"]
[Annotator "NA"]
[PlyCount "53"]
[EventDate "2018.10.20"]
[EventType "swiss"]
[EventCountry "GRE"]
[SourceTitle "playchess.com"]
[Source "ChessBase"]
[SourceQuality "1"]
[TimeControl "40/5400+30:1800+30"]

1. e4 {[%emt 0:00:00]} c5 {[%emt 0:00:00]} 2. Nf3 {[%emt 0:00:00]} d6 {[%emt 0:00:00]} 3. c3 {[%emt 0:01:52]} Nf6 {[%emt 0:08:21]} 4. Be2 {[%emt 0:00:07]} g6 {[%emt 0:00:07]} 5. O-O {[%emt 0:00:11]} Bg7 {[%emt 0:00:03]} 6. Bb5+ {[%emt 0:00:16]} Bd7 {[%emt 0:00:14]} 7. Bxd7+ {[%emt 0:00:08]} Nbxd7 {[%emt 0:03:55]} 8. Re1 {[%emt 0:00:13]} O-O {[%emt 0:00:11]} 9. d4 {[%emt 0:00:24]} cxd4 {[%emt 0:00:52]} 10. cxd4 {[%emt 0:00:17]} Rc8 {[%emt 0:15:51]} 11. Nc3 {[%emt 0:00:23]} a6 {[%emt 0:03:33]} 12. a4 {[%emt 0:09:06]} Nb8 {[%emt 0:03:53]} 13. Qb3 {[%emt 0:05:41]} b6 {[%emt 0:10:34]} 14. e5 Ng4 $18 {[%emt 0:07:10]} 15. h3 {[%emt 0:19:25]} Nh6 16. Nd5 dxe5 {[%emt 0:14:06]} 17. dxe5 {[%emt 0:07:08]} Nd7 {[%emt 0:01:07]} 18. Bg5 {[%emt 0:01:18]} Re8 {[%emt 0:02:40]} 19. Rad1 {[%emt 0:03:13]} Kh8 {[%emt 0:02:29]} 20. Qb4 {[%emt 0:07:40]} Ng8 {[%emt 0:04:37]} 21. e6 {[%emt 0:00:33]} fxe6 {[%emt 0:00:42]} 22. Nf4 {[%emt 0:00:07]} a5 {[%emt 0:01:52]} 23. Nxg6+ {[%emt 0:04:29]} hxg6 {[%emt 0:00:10]} 24. Qh4+ {[%emt 0:00:05]} Nh6 {[%emt 0:02:31]} 25. Bxh6 {[%emt 0:00:02]} Rc5 {[%emt 0:02:59]} 26. Bxg7+ {[%emt 0:02:01]} Kxg7 {[%emt 0:00:08]} 27. Qd4+ 1-0